Cogmind - Beta 14 @@@ ROGUE MODE // 2024.10.12 @ 21:10:13 Player: Kat Result: Self-destructed Performance ------------- Evolutions (1) 500 Regions Visited (2) 400 Robots Destroyed (0) 0 Value Destroyed (0) 0 Prototype IDs (0) 0 Alien Tech Used (0) 0 Bonus (200) 200 TOTAL SCORE: 1100 Bonus ------- Pacifist 200 Cogmind --------- Core Integrity 400/400 Matter 270/300 Energy 250/250 System Corruption 0% Temperature Cool (0) Movement Walking (120) Location -9/Materials Parts ------- > --- POWER (2) -------- Ion Engine > --- PROPULSION (2) --- Aluminum Leg > --- UTILITY (2) ------ Structural Scanner Terrain Scanner > --- WEAPON (3) ------- Medium Laser > --- INVENTORY (5) ---- Aluminum Leg Compact Wheel Compact Wheel Small Matter Pod (0) Sensor Array Peak State ------------ > --- POWER ------------ Ion Engine > --- PROPULSION ------- Aluminum Leg > --- UTILITY ---------- Sensor Array Terrain Scanner > --- WEAPON ----------- Medium Laser > --- INVENTORY -------- Aluminum Leg Compact Wheel Compact Wheel [Rating: 5] Favorites ----------- Power Ion Engine Engine Ion Engine Propulsion Aluminum Leg Leg Aluminum Leg Utility Terrain Scanner Device Terrain Scanner Weapon Medium Laser Energy Gun Medium Laser Ballistic Gun Light Assault Rifle Build | -11 -10 -9 ------- Run | Yrd Mat Mat Slots Evolved 2 | . . 2 Power 1 | . . 1 Propulsion . | . . . Utility . | . . . Weapon 1 | . . 1 Parts Attached 8 | 5 3 . Power 1 | 1 . . Engine 1 | 1 . . Core . | . . . Reactor . | . . . Propulsion 1 | 1 . . Treads . | . . . Leg 1 | 1 . . Wheel . | . . . Hover . | . . . Flight . | . . . Utility 3 | . 3 . Device 3 | . 3 . Storage . | . . . Processor . | . . . Hackware . | . . . Protection . | . . . Artifact . | . . . Weapon 3 | 3 . . Energy Gun 2 | 2 . . Energy Cannon . | . . . Ballistic Gun 1 | 1 . . Ballistic Cannon . | . . . Launcher . | . . . Special Weapon . | . . . Impact Weapon . | . . . Slashing Weapon . | . . . Piercing Weapon . | . . . Special Melee Weapon . | . . . Unidentified Prototypes . | . . . Parts Lost . | . . . Power . | . . . Propulsion . | . . . Utility . | . . . Weapon . | . . . Highest Loss Streak . | . . . To Critical Strikes . | . . . Average Slot Usage (%) 60 | . 60 . Engine 14 | . 14 . Leg 14 | . 14 . Device 14 | . 14 . Energy Gun 17 | . 17 . Peak Build Rating 5 | 4 5 . Average Rating 3 | 2 4 . On Entrance 3 | . 4 5 Naked Turns . | . . . Heaviest Build 9 | 9 9 . Greatest Support 10 | 10 10 . Greatest Overweight (x) 1 | 1 . . Average Overweight (x) . | . . . Largest Inventory Capacity 5 | 5 5 . Average Capacity 5 | 5 5 . Most Carried 5 | 3 5 . Average Carried 3 | 1 3 . Final Capacity 5 | 5 5 5 Final Carried 5 | 3 5 5 Class Distribution -------------------- 100% | Mutant Dominant Class ---------------- Mutant | -10/Materials Mutant | -9/Materials Resources | -11 -10 -9 ----------- Run | Yrd Mat Mat Matter Collected 250 | 250 . . Remotely . | . . . Salvage Created . | . . . Parts . | . . . Haulers Intercepted . | . . . Recyclers Shooed 1 | . 1 . Parts Field Recycled . | . . . Retrieved Matter . | . . . Parts Self-Destructed . | . . . Prevented . | . . . Kills | -11 -10 -9 ------- Run | Yrd Mat Mat Combat Hostiles Destroyed . | . . . Classes Destroyed . | . . . Best Kill Streak . | . . . Combat Bots Only . | . . . Max Kills in Single Turn . | . . . Gunslinging . | . . . Exploded . | . . . Melee . | . . . Uniques/NPCs Destroyed . | . . . Combat | -11 -10 -9 -------- Run | Yrd Mat Mat Hostile Shots Fired 3 | . 3 . Missed 1 | . 1 . Damage Taken 36 | . 36 . Core 3 | . 3 . Absorbed by Shields . | . . . Core Remaining (%) 99 | 100 98 . Volleys Fired 1 | . 1 . Largest 1 | . 1 . Hottest 50 | . 50 . Shots Fired 1 | . 1 . Gun 1 | . 1 . Cannon . | . . . Launcher . | . . . Special . | . . . Kinetic . | . . . Thermal 1 | . 1 . Explosive . | . . . Electromagnetic . | . . . Robot Hit Streak 1 | . 1 . Robot Miss Streak . | . . . Penetration Max . | . . . Secondary Targets . | . . . Shots Hit Robots 1 | . 1 . Core Hits . | . . . Critical Kills . | . . . Critical Parts Destroyed . | . . . Critical Strikes . | . . . Melee Attacks . | . . . Impact . | . . . Slashing . | . . . Piercing . | . . . Sneak Attacks . | . . . Combat Hostiles . | . . . Follow-up Attacks . | . . . Damage Inflicted 18 | . 18 . Guns 13 | . 13 . Cannons . | . . . Explosions . | . . . Melee . | . . . Ramming 5 | . 5 . Kinetic . | . . . Thermal 13 | . 13 . Explosive . | . . . Electromagnetic . | . . . Impact . | . . . Slashing . | . . . Piercing . | . . . Highest Corruption 1 | . 1 . Average Corruption 1 | . 1 . Corruption Purged . | . . . Corruption Blocked . | . . . Overload Shots . | . . . Overflow Damage . | . . . Projectiles . | . . . Explosions . | . . . Melee . | . . . Knockbacks . | . . . Impact . | . . . Kinetic . | . . . Secondary . | . . . Self-Inflicted Damage 3 | . 3 . Shots . | . . . Rammed . | . . . Targets Rammed 1 | . 1 . Kicked 1 | . 1 . Crushed . | . . . Highest Temperature 19 | . 19 . Average Temperature 16 | . 16 . Received Heat Transfer 18 | . 18 . Siege Activations . | . . . Robots Corrupted . | . . . Combat Hostiles . | . . . Parts Fried . | . . . Impact Corruptions . | . . . Robots Melted . | . . . Combat Hostiles . | . . . Parts Melted . | . . . Heat Transferred 37 | . 37 . Parts Sabotaged . | . . . Parts Stolen . | . . . Parts Stripped . | . . . Power Chain Reactions . | . . . Alert | -11 -10 -9 ------- Run | Yrd Mat Mat Peak Influence 5 | . 5 . Initial 1 | . . 1 Average 1 | . 1 . Maximum Alert Level . | . . . Low Security (%) 100 | 100 100 . Level 1 . | . . . Level 2 . | . . . Level 3 . | . . . Level 4 . | . . . Level 5 . | . . . High Security . | . . . Max Security . | . . . Squads Dispatched . | . . . Investigation . | . . . Extermination . | . . . Reinforcement . | . . . Assault . | . . . Garrison . | . . . Intercept . | . . . Searches Triggered . | . . . Construction Impeded . | . . . Haulers Reinforced . | . . . Active Scanning Responses . | . . . Cargo Convoy Interrupts . | . . . Stealth | -11 -10 -9 --------- Run | Yrd Mat Mat Distress Signals . | . . . Communications Jammed . | . . . Distress Signals . | . . . Times Spotted 2 | . 2 . Peak Tracking Total 2 | . 2 . Tactical Retreats . | . . . Traps | -11 -10 -9 ------- Run | Yrd Mat Mat Traps Triggered . | . . . Indirectly . | . . . Trap Hack Attempts . | . . . Triggered . | . . . Disarmed . | . . . Reprogrammed . | . . . Reused . | . . . Traps Extracted . | . . . Installed . | . . . Triggered . | . . . Machines | -11 -10 -9 ---------- Run | Yrd Mat Mat Machines Disabled . | . . . Max in Single Turn . | . . . Machines Repaired . | . . . Machines Dismantled . | . . . Machines Sabotaged . | . . . Overloaded Fab Kills . | . . . Hacking | -11 -10 -9 --------- Run | Yrd Mat Mat Machines Accessed 1 | . 1 . Terminals 1 | . 1 . Fabricators . | . . . Repair Stations . | . . . Recycling Units . | . . . Scanalyzers . | . . . Garrison Access . | . . . Total Hacks 5 | . 5 . Successful 4 | . 4 . Failed 1 | . 1 . Catastrophic 1 | . 1 . Database Lockouts . | . . . Manual . | . . . Terminals 5 | . 5 . Fabricators . | . . . Repair Stations . | . . . Recycling Units . | . . . Scanalyzers . | . . . Garrison Access . | . . . Terminal Hacks 4 | . 4 . Dispatch Records 1 | . 1 . Investigation Status 1 | . 1 . Reinforcement Status 1 | . 1 . Hauler Manifests 1 | . 1 . Fabricator Hacks . | . . . Repair Station Hacks . | . . . Recycling Unit Hacks . | . . . Scanalyzer . | . . . Garrison Access Hacks . | . . . Unauthorized Hacks . | . . . Terminals . | . . . Fabricators . | . . . Repair Stations . | . . . Recycling Units . | . . . Scanalyzers . | . . . Garrison Access . | . . . Data Cores Recovered . | . . . Used . | . . . Hacking Detections 1 | . 1 . Full Trace Events 1 | . 1 . Feedback Events . | . . . Feedback Blocked . | . . . Robot Schematics Acquired . | . . . Robots Built . | . . . Authchips . | . . . Time . | . . . Total Robot Build Rating . | . . . Part Schematics Acquired . | . . . Parts Built . | . . . Authchips . | . . . Time . | . . . Total Part Build Rating . | . . . Parts Repaired . | . . . Time . | . . . Parts Recycled . | . . . Recycled Matter . | . . . Retrieved Matter . | . . . Retrieved Components . | . . . Parts Scanalyzed . | . . . Part Schematics Acquired . | . . . Parts Damaged . | . . . Bothacking | -11 -10 -9 ------------ Run | Yrd Mat Mat Used RIF Installer . | . . . Robots Hacked . | . . . Non-combat . | . . . Combat . | . . . Robot Hacks Applied . | . . . Relay Couplers Released . | . . . Fabnet Peak Effective % . | . . . Robots Rewired . | . . . Allies Hacked . | . . . Hacks Repelled . | . . . Allies | -11 -10 -9 -------- Run | Yrd Mat Mat Total Allies . | . . . Largest Group . | . . . Highest-Rated Group . | . . . Highest-Rated Ally . | . . . Total Orders . | . . . Ally Attacks . | . . . Total Damage . | . . . Kills . | . . . Allies Corrupted . | . . . Allies Melted . | . . . Intel | -11 -10 -9 ------- Run | Yrd Mat Mat Robot Analysis Total . | . . . Derelict Logs Recovered . | . . . Drone Launches . | . . . Drone Recoveries . | . . . Exploration | -11 -10 -9 ------------- Run | Yrd Mat Mat Turns Passed 383 | 65 318 . Spaces Moved 321 | 66 255 . Core 40 | 40 . . Treads . | . . . Legs 281 | 26 255 . Wheels . | . . . Hover . | . . . Flight . | . . . Fastest Speed 50 | 50 120 . Average Speed 111 | 79 120 . Slowest Speed 120 | 120 120 . Overloaded Moves . | . . . Propulsion Burnouts . | . . . Robots Hopped . | . . . Cave-ins Triggered . | . . . Exploration Rate (%) 11 | 3 29 1 Regions Visited 2 Branch Regions . Pre-discovered Areas . | . . . Known Exits Taken . | . . . Unknown Exits Taken 2 | 1 1 . Scrap Searched . | . . . Spaces Dug . | . . . Terrain Destroyed . | . . . Melee . | . . . Projectile . | . . . AOE . | . . . Terrain Rammed 1 | . 1 . Walls Destroyed . | . . . Machines Disabled . | . . . Actions | -11 -10 -9 --------- Run | Yrd Mat Mat Total 344 | 78 266 . Wait . | . . . Move 319 | 65 254 . Hop . | . . . Pick Up 10 | 6 4 . Fast Attach 2 | 2 . . Attach 6 | 3 3 . Detach 2 | 1 1 . Swap . | . . . Drop 2 | 1 1 . Fire 1 | . 1 . Melee . | . . . Ram 1 | . 1 . Kick 1 | . 1 . Crush . | . . . Escape Stasis . | . . . Rewire . | . . . Trap . | . . . Miscellaneous . | . . . Route ------- -11/Scrapyard -10/Materials (discovered 2 exits: [*Mat x2]) -9/Materials History --------- Turn | Location | Event 4 | -11/Scrapyard | Discovered new exit (range 15) 66 | -11/Scrapyard | Entered Materials 228 | -10/Materials | Discovered new exit (range 10) 290 | -10/Materials | Discovered new exit (range 10) 300 | -10/Materials | Build established: Mutant 384 | -10/Materials | Entered another Materials area 384 | -9/Materials | Evolved 2 slots: Power x1, Weapon x1 384 | -9/Materials | Self-destructed Last Messages --------------- A-02 Transporter 5x Hover Unit (2 escorts) >>Enumerate(Reinforcements) Retrieving latest reported positions... No active reinforcement squads found. >>Enumerate(Squads) Retrieving dispatch records... Found 8 active squads: 3x Surveillance 3x Patrol 2x Transport >>Enumerate(Investigations) Retrieving latest reported positions... No active investigation squads found. 00290_ EXIT=FOUND 00306_ Acquired Sml. Matter Pod. PARAMETERS=POWER+1,WEAPON+1 LOCATION=UNKNOWN GOAL=ESCAPE Map ----- +----------------------------------------------------+ | ????????????????????????????????????????? | | ????????????????????????????????????????? | | ????????????????????????????????????????? | | ????????????????????????????????????????? | | ????????????????????????????????????????? | | ????????????????????????????????????????? | | ????????????????????????????????????????? | | ????????????????????????????????????????? | | ????????????????????????????????????????? | | ????????????????????????????????????????? | | ??????????????????????## ?????????????? | | ??????????????????????## ###??????????? | | ?????????????????????? ###??????????? | | ??????????????????????? ??????????? | | ?????????????????????? ???????????? | | ??????????????????????## ????????????? | | ??????????????????????## ????????????? | | ??????????????????????## ????????????? | | ??????????????????????## ???????????? | | ?????????????????????? # ##???????????? | | ?????????????????????? # ##???????????? | | ?????????????????????? # # ???????????? | | ?????????????????????? # # ???????????? | | ?????????????????????? + # ???????????? | | ?????????????????????? # + ???????????? | | ?????????????????????? # @ # ???????????? | | ?????????????????????? # # ???????????? | | ?????????????????????? ######???????????? | | ??????????????????????#######???????????? | | ????????????????????????????????????????? | | ????????????????????????????????????????? | | ????????????????????????????????????????? | | ????????????????????????????????????????? | | ????????????????????????????????????????? | | ????????????????????????????????????????? | | ????????????????????????????????????????? | | ????????????????????????????????????????? | | | | | | | | | | | | | | | | | | | | | | | | | | | +----------------------------------------------------+ Best States ------------- Heat Dissipation 25 Energy Generation 10 Energy Capacity 250 Matter Stores 300 Matter Capacity 300 Sight Range 16 Robot Scan Range 14 Terrain Scan Range 14 Terrain Scan Density 10 Evasion (%) 55 Item Schematics ----------------- None Robot Schematics ------------------ None Fabricated ------------ Nothing Alien Tech Used ----------------- None Achievements -------------- None Challenges ------------ None Game ------ Seed FusionDecoderTreads Manual? 0 Play Time 00:04:24 Cumulative 6.7 hours Start 2024.10.11 @ 15:20:56 End 2024.10.12 @ 21:10:13 Sessions 2 Manual Loads 0 Difficulty Rogue Special Mode None Game No. 25 Rogue 25 Adventurer 0 Explorer 0 Win Type - Total 0 Types 0/0/0/0/0/0/0/0/0 Lore% 3 Gallery% 17 Achievement% 16 Wizard Run 0 Options --------- Layout 1 ASCII 0 Keyboard 0 Movement Arrows Keybinds 0 Fullscreen 1 Font 24/Smallcaps Map View 50x35 Zoom Use 0% Tactical HUD 1 Map Filters NONE Filters NONE Steam 1 RUN: 79701fc0-6d87-4298-886b-89e1a6fcf049